Cogmind - Beta 16 @@@ ROGUE MODE // 2025.12.09 @ 14:57:22 Player: AngelSpirit Result: Destroyed by Q765-p with Ragnarok Missile Launcher Performance ------------- Evolutions (8) 4000 Regions Visited (23) 4600 Robots Destroyed (351) 1755 Value Destroyed (20209) 20209 Prototype IDs (127) 2540 Alien Tech Used (7) 1400 Bonus (10531) 10531 TOTAL SCORE: 45035 Bonus ------- High Alert Combat Kills 1350 Follower Combat Kills 2017 Network Hubs Disabled 200 Registered with UFD 300 Met Optimus in HQ 500 Met Imprinter 300 Met Zhirov 300 Built Enhanced Grunts 300 A7 Reached Mainframe 300 Met R17 at Cetus 500 Read Decrypted Archives 300 Met R17 at Research 2000 Scanned by Researcher 500 Met Sigix 2000 Friendly Fire -336 Cogmind --------- Core Integrity 0/1450 Matter 106/300 Energy 71/100 System Corruption 15% Temperature Cool (0) Movement Core (100) Ox1 Location -2/Protoforge Parts ------- > --- POWER (3) -------- (None) > --- PROPULSION (6) --- (None) > --- UTILITY (11) ----- 2N-1CE's Frost Array Advanced Signal Interpreter Experimental Targeting Computer Experimental Core Analyzer A0-MCA's Component Scanner > --- WEAPON (4) ------- Compact Linear Accelerator > --- INVENTORY (5) ---- SHELL Armor Smartbomb Launcher Peak State ------------ > --- POWER ------------ Zero-point Reactor Zero-point Reactor > --- PROPULSION ------- Shield Leg Biometal Leg Biometal Leg Biometal Leg Heavy Shield Leg > --- UTILITY ---------- 2N-1CE's Frost Array Huge Storage Unit Advanced Signal Interpreter Experimental Targeting Computer Experimental Core Analyzer Improved Armor Integrity Analyzer Advanced Phase Shifter SHELL Armor A0-MCA's Component Scanner > --- WEAPON ----------- Enhanced Quantum Rifle Cooled Phase Cannon Enhanced Nova Cannon Null Cannon > --- INVENTORY -------- Particle Reactor Biometal Leg Biometal Leg Wheel Experimental Cooling System Huge Storage Unit Experimental Matter Compressor Structural Scanner Advanced Sensor Array Advanced Recoil Stabilizer Improved Shock Absorption System Experimental Hardlight Generator Experimental Force Field Advanced Dynamic Insulation System Transdimensional Reconstructor KE Penetrator KE Penetrator Advanced KE Penetrator Compact Linear Accelerator Graviton Cannon Smartbomb Launcher Sigix Containment Pod [Rating: 212] Favorites ----------- Power Light Nuclear Core Engine Light Ion Engine Power Core Light Nuclear Core Reactor Light Quantum Reactor Propulsion Wheel Treads Heavy Siege Treads Leg Biometal Leg Wheel Wheel Hover Unit Improved Linear Gravjet Flight Unit Flightbrick Utility A0-MCA's Component Scanner Device Advanced Sensor Array Storage Huge Storage Unit Processor A0-MCA's Component Scanner Hackware Hacking Suite Protection Makeshift Light Armor Plating Artifact Phase Armor Weapon Plasma Rifle Energy Gun Plasma Rifle Energy Cannon Null Cannon Ballistic Gun Hypervelocity Coil Gun Ballistic Cannon Hypervelocity Gauss Cannon Launcher Subdweller Shrapnel Launcher Special Weapon Enhanced Flamer Impact Weapon Great Maul Slashing Weapon Phasing Sabre Build | -11 -10 -10 -8 -6 -6 -6 -6 -5 -5 -5 -5 -5 -5 -4 -4 -4 -4 -3 -3 -3 -2 -2 -2 ------- Run | Yrd Mat Sub Scr Fac Low Low Zio Pro Fac Ext Cet Arc Hub Fac Upp Upp Zhi Pro Res Qua Res Tes Frg Slots Evolved 16 | . . . . 8 . . . . 2 . . . . 2 . . . . 2 . 2 . . Power 1 | . . . . . . . . . . . . . . 1 . . . . . . . . . Propulsion 4 | . . . . 2 . . . . 2 . . . . . . . . . . . . . . Utility 9 | . . . . 5 . . . . . . . . . 1 . . . . 2 . 1 . . Weapon 2 | . . . . 1 . . . . . . . . . . . . . . . . 1 . . Parts Attached 297 | 6 . 12 6 33 . 1 4 . 8 6 4 . 1 34 . 3 1 5 54 45 31 25 18 Power 52 | 1 . 2 . 3 . . . . 1 2 1 . . 2 . 3 . 2 12 10 6 5 2 Engine 6 | 1 . 1 . . . . . . 1 1 . . . 1 . . . 1 . . . . . Core 11 | . . 1 . 3 . . . . . . . . . 1 . 2 . 1 2 . . 1 . Reactor 35 | . . . . . . . . . . 1 1 . . . . 1 . . 10 10 6 4 2 Propulsion 88 | 2 . 3 2 6 . . . . 5 . . . 1 18 . . 1 1 10 14 13 3 9 Treads 8 | . . . . . . . . . . . . . . 1 . . . 1 1 3 1 . 1 Leg 16 | . . . . 3 . . . . . . . . . . . . . . . 3 3 . 7 Wheel 48 | 2 . 3 2 1 . . . . . . . . . 9 . . 1 . 9 8 9 3 1 Hover 11 | . . . . . . . . . 3 . . . 1 7 . . . . . . . . . Flight 5 | . . . . 2 . . . . 2 . . . . 1 . . . . . . . . . Utility 92 | 1 . 2 2 19 . 1 2 . 1 . 2 . . 11 . . . 1 17 14 5 10 4 Device 44 | . . 1 . 7 . 1 . . . . 1 . . 6 . . . . 8 6 3 7 4 Storage 7 | 1 . . 2 1 . . . . . . . . . 2 . . . . 1 . . . . Processor 13 | . . . . 4 . . 1 . . . . . . 3 . . . . 1 4 . . . Hackware 8 | . . . . 3 . . 1 . 1 . . . . . . . . . 1 1 1 . . Protection 18 | . . 1 . 4 . . . . . . 1 . . . . . . 1 6 1 1 3 . Artifact 2 | . . . . . . . . . . . . . . . . . . . . 2 . . . Weapon 65 | 2 . 5 2 5 . . 2 . 1 4 1 . . 3 . . . 1 15 7 7 7 3 Energy Gun 26 | 2 . . . . . . . . . . 1 . . . . . . . 11 4 6 2 . Energy Cannon 8 | . . 1 . 1 . . . . . . . . . . . . . . 1 1 1 3 . Ballistic Gun 12 | . . 2 . 2 . . . . . 1 . . . 2 . . . 1 . 1 . . 3 Ballistic Cannon 8 | . . . 2 1 . . . . . 1 . . . 1 . . . . . 1 . 2 . Launcher 5 | . . 1 . . . . . . 1 1 . . . . . . . . 2 . . . . Special Weapon 2 | . . . . . . . 1 . . 1 . . . . . . . . . . . . . Impact Weapon 1 | . . . . 1 . . . . . . . . . . . . . . . . . . . Slashing Weapon 3 | . . 1 . . . . 1 . . . . . . . . . . . 1 . . . . Piercing Weapon . | . . . . . . . . . . . . . . . . . . . . . . . . Special Melee Weapon . | . . . . . . . . . . . . . . . . . . . . . . . . Unidentified Prototypes 7 | . . . . . . . . . . . . . . . . 1 1 . . 5 . . . Parts Lost 134 | . . 5 . 8 . 1 . . 1 2 1 3 . 8 . 2 . 5 19 27 17 2 33 Power 26 | . . 2 . 1 . . . . . . . . . 2 . . . 1 4 6 4 1 5 Propulsion 45 | . . 3 . 3 . . . . . . . 1 . 4 . . . 2 4 6 9 1 12 Utility 32 | . . . . 4 . 1 . . . 1 . 2 . 1 . 1 . 2 6 7 1 . 6 Weapon 31 | . . . . . . . . . 1 1 1 . . 1 . 1 . . 5 8 3 . 10 Highest Loss Streak 13 | . . 3 . 4 . 1 . . 1 1 1 3 . 2 . 2 . 5 8 6 6 1 13 To Critical Strikes 3 | . . . . . . . . . . . . . . . . 1 . . . . . . 2 Average Backups 12 | . . 5 7 7 4 4 4 4 4 3 4 4 4 9 15 16 18 15 18 20 19 19 20 Power . | . . . . 1 1 1 1 1 . . . . . . 1 1 1 . 1 1 1 1 1 Propulsion 1 | . . . 1 . . . . . . . . . . 1 3 3 3 1 2 3 2 1 1 Utility 5 | . . 1 3 4 2 2 2 2 2 2 2 2 2 5 9 8 8 7 7 7 9 10 9 Weapon 3 | . . 2 2 1 1 1 1 1 1 . 1 1 1 2 2 3 5 5 6 5 5 5 6 Tool/Special . | . . . . . . . . . . . . . . . . . . . . . . . . Unused Backups 72 | . . 5 17 20 . . . . . . . . . 2 . 2 3 . 6 4 2 6 5 Power 8 | . . . 2 3 . . . . . . . . . . . . . . 2 . 1 . . Propulsion 10 | . . . 3 3 . . . . . . . . . 1 . 1 . . . 1 1 . . Utility 35 | . . 2 8 9 . . . . . . . . . . . . 3 . 2 2 . 5 4 Weapon 17 | . . 3 4 5 . . . . . . . . . 1 . 1 . . 2 . . 1 . Tool/Special 2 | . . . . . . . . . . . . . . . . . . . . 1 . . 1 Average Slot Usage (%) 83 | . 85 93 75 67 77 75 79 83 82 78 74 74 64 84 89 92 89 88 92 89 84 84 78 Engine 1 | . 14 11 . . . . . . . 4 . . . . . . . 3 . . . . . Core 3 | . . 1 14 5 5 5 5 5 4 . . . . . . 8 10 9 3 . . . 2 Reactor 4 | . . . . . . . . . . . 5 5 5 5 5 1 . . 8 11 10 10 7 Treads 2 | . . . . . . . . . . . . . . 1 5 5 5 5 4 5 2 4 2 Leg 1 | . . . . 6 . . . . . . . . . . . . . . . . . 2 8 Wheel 13 | . 28 26 27 7 . . . . . . . . . 7 21 20 20 19 17 13 13 13 7 Hover 1 | . . . . . . . . . 3 . . . 3 12 . . . . . . . . . Flight 1 | . . . . 3 5 5 5 5 8 10 10 9 5 1 . . . . . . . . . Device 11 | . . 9 . 10 16 18 16 16 15 15 16 19 11 12 15 14 14 10 18 15 10 8 7 Storage 5 | . 14 14 14 4 . . . . . . . . . 3 5 5 5 5 4 4 4 4 3 Processor 13 | . . . . 4 16 16 21 22 20 20 15 15 16 17 15 15 15 15 13 17 20 20 20 Hackware 4 | . . . . 2 16 16 16 16 15 12 10 10 11 6 5 5 5 . 2 1 3 2 . Protection 3 | . . 1 14 7 5 1 . . . . 2 . . . . . . 4 3 4 . 3 3 Energy Gun 4 | . 28 1 . . . . . . . . 1 5 1 3 5 4 5 . 10 8 10 4 2 Energy Cannon 1 | . . 1 2 1 . . . . . . . . . . . . . . . 3 . 4 5 Ballistic Gun 3 | . . 20 2 4 . . . . . . . . . 5 10 5 5 7 . . 1 . 3 Ballistic Cannon 1 | . . . . 3 . . . . . . 5 4 . . . 4 5 5 . . . 3 . Launcher 1 | . . . . 1 5 5 5 5 5 9 . . 3 . . . . 2 . . . . . Peak Build Rating 212 | 6 6 18 25 96 95 95 104 104 122 123 131 131 106 125 103 110 106 104 164 165 172 204 212 Average Rating 109 | 3 6 13 16 57 95 94 100 104 114 120 123 125 103 108 103 103 104 98 139 150 150 182 175 On Entrance 95 | . 6 6 18 17 95 95 95 104 104 122 120 131 101 104 103 103 104 106 101 163 160 159 170 Avg Prop Armor Cover (%) 9 | . . 5 . 9 . . . . 2 . . . 1 6 15 13 13 11 11 12 6 11 7 Naked Turns . | . . . . . . . . . . . . . . . . . . . . . . . . Heaviest Build 211 | 14 14 26 45 126 24 24 24 24 36 36 36 33 24 76 76 91 86 97 160 174 183 211 203 Greatest Support 169 | 20 20 40 32 32 24 24 24 24 37 37 53 37 24 70 46 46 46 70 70 130 82 46 169 Greatest Overweight (x) 10 | . . 1 1 7 . . . . . . . . . 2 1 1 2 2 3 4 10 5 9 Average Overweight (x) . | . . . . 1 . . . . . . . . . . 1 1 1 1 2 2 2 4 1 Largest Inventory Capacity 25 | 8 8 8 15 25 5 5 5 5 5 5 5 5 5 20 20 20 20 20 25 25 25 25 25 Average Capacity 17 | 6 8 8 12 18 5 5 5 5 5 5 5 5 5 12 20 20 20 20 23 25 25 25 24 Most Carried 25 | . 2 8 15 18 5 5 5 5 5 5 5 5 5 17 17 20 20 20 25 25 25 25 25 Average Carried 15 | . 1 6 10 10 5 5 5 5 4 4 5 5 5 10 17 18 19 16 21 22 23 23 23 Final Capacity 25 | 8 8 8 15 5 5 5 5 5 5 5 5 5 5 20 20 20 20 20 25 25 25 25 5 Final Carried 25 | . 2 7 11 5 5 5 5 5 5 5 5 5 5 17 17 20 20 18 21 23 25 25 5 Class Distribution -------------------- 24% | Scavenger-Gunner 19% | Mutant 16% | Scavenger-Tank 16% | Hacker-Scout 12% | Scavenger-Skirmisher 3% | Scavenger-Mutant Dominant Class ---------------- Mutant | -10/Materials Mutant | -10/Subcaves Mutant | -8/Scraptown Mutant | -6/Factory Hacker-Scout | -6/Lower Caves Hacker-Scout | -6/Lower Caves Hacker-Scout | -6/Zion Hacker-Scout | -5/Proximity Caves Hacker-Scout | -5/Factory Hacker-Scout | -5/Extension Commander-Scout | -5/Cetus Commander-Scout | -5/Archives Hacker-Scout | -5/Hub_04(d) Scavenger-Skirmisher | -4/Factory Scavenger-Skirmisher | -4/Upper Caves Scavenger-Skirmisher | -4/Upper Caves Scavenger-Skirmisher | -4/Zhirov Scavenger-Tank | -3/Proximity Caves Scavenger-Tank | -3/Research Scavenger-Tank | -3/Quarantine Scavenger-Gunner | -2/Research Scavenger-Gunner | -2/Testing Scavenger-Gunner | -2/Protoforge Resources | -11 -10 -10 -8 -6 -6 -6 -6 -5 -5 -5 -5 -5 -5 -4 -4 -4 -4 -3 -3 -3 -2 -2 -2 ----------- Run | Yrd Mat Sub Scr Fac Low Low Zio Pro Fac Ext Cet Arc Hub Fac Upp Upp Zhi Pro Res Qua Res Tes Frg Matter Collected 12425 | 260 53 336 60 1261 83 205 40 . 255 349 290 68 . 1114 44 228 100 317 1167 1531 881 1831 1952 Remotely . | . . . . . . . . . . . . . . . . . . . . . . . . Salvage Created 16984 | . . 227 . 1366 . 56 . . 365 1216 66 96 88 1568 . 135 213 552 2413 2324 2270 1477 2552 Parts 735 | . . 11 . 44 . 3 . . 24 64 2 4 2 78 . 9 3 18 83 86 116 59 129 Haulers Intercepted . | . . . . . . . . . . . . . . . . . . . . . . . . Recyclers Shooed 7 | . . . . 2 . . . . . 1 . . . 1 . . . . . 2 1 . . Parts Field Recycled . | . . . . . . . . . . . . . . . . . . . . . . . . Retrieved Matter . | . . . . . . . . . . . . . . . . . . . . . . . . Parts Self-Destructed 42 | . . 12 . . . 1 . . . . . . . . . 14 . 15 . . . . . Prevented 2 | . . . . . . . . . . . . . . . . 2 . . . . . . . Parts Restored . | . . . . . . . . . . . . . . . . . . . . . . . . Kills | -11 -10 -10 -8 -6 -6 -6 -6 -5 -5 -5 -5 -5 -5 -4 -4 -4 -4 -3 -3 -3 -2 -2 -2 ------- Run | Yrd Mat Sub Scr Fac Low Low Zio Pro Fac Ext Cet Arc Hub Fac Upp Upp Zhi Pro Res Qua Res Tes Frg Combat Hostiles Destroyed 270 | . . 7 . 18 . 6 . . 10 21 1 2 1 27 . 6 . 6 52 34 27 15 37 Melee 18 | . . 1 . . . . . . 2 14 . . . 1 . . . . . . . . . Guns 83 | . . 4 . 3 . . . . . . . . . 10 . 1 . 1 18 17 24 . 5 Cannons 71 | . . . . 7 . . . . . . 1 2 . 3 . . . 4 . 10 1 14 29 AOE 80 | . . 2 . 7 . 5 . . 8 7 . . 1 13 . 5 . 1 27 3 1 . . Classes Destroyed 28 | . . 2 . 9 . 1 . . 1 3 . . . . . . . 1 3 2 2 2 2 Worker 30 | . . . . 5 . . . . 3 . . . 1 6 . . . . 1 4 6 1 3 Builder 9 | . . . . 2 . . . . . 4 . . . . . . . . . 2 . 1 . Tunneler 6 | . . . . 2 . . . . 1 1 . . . 1 . . . . . . 1 . . Recycler 10 | . . . . 4 . . . . . . . . . 3 . . . . . 3 . . . Operator 4 | . . . . . . . . . . 1 . . . 1 . . . . . . 1 . 1 Drone 3 | . . . . . . . . . . . . . . . . . . 2 . . . . 1 Watcher 18 | . . . . 1 . . . . 1 . 1 . . 2 . . . . . 3 5 3 2 Swarmer 63 | . . . . 4 . 4 . . 5 5 . . . 17 . 5 . . 18 5 . . . Saboteur 1 | . . . . 1 . . . . . . . . . . . . . . . . . . . Grunt 68 | . . 2 . 9 . . . . 2 9 . 2 1 3 . 1 . 3 13 10 9 4 . Brawler 1 | . . . . . . . . . 1 . . . . . . . . . . . . . . Duelist 2 | . . . . . . . . . . 1 . . . . . . . 1 . . . . . Protector 1 | . . . . . . . . . . 1 . . . . . . . . . . . . . Researcher 3 | . . . . . . . . . . . . . . . . . . . . 1 . 2 . Sentry 18 | . . . . 1 . 1 . . 2 5 . . . 3 . . . . 1 3 1 . 1 Demolisher 1 | . . . . . . . . . . . . . . . . . . . 1 . . . . Specialist 6 | . . . . . . . . . . . . . . . . . . . . 3 . . 3 Hunter 27 | . . . . 3 . . . . . . . . . . . . . . 9 . 2 3 10 Programmer 46 | . . . . . . 1 . . . . . . . 4 . . . . 2 10 13 5 11 Q-Series 3 | . . . . . . . . . . . . . . . . . . . . . 1 . 2 Behemoth 1 | . . . . . . . . . . . . . . . . . . . . . 1 . . Cetus Guard 1 | . . . . . . . . . . . 1 . . . . . . . . . . . . Lightning 3 | . . . . . . . . . . . . . . . . . . . . 3 . . . CL-0N3 Special 1 | . . . . . . . . . . . . . . . . . . . . . . 1 . Hotshot 6 | . . . . . . . . . . . . . . . . . . . . . . . 6 Overlord 1 | . . . . . . . . . . . . . . . . . . . . . . . 1 Striker 7 | . . . . . . . . . . . . . . . . . . . 7 . . . . Executioner 1 | . . . . . . . . . . . . . . . . . . . 1 . . . . Alpha 7 2 | . . . . . . . . . . . . . . . . . . . . . . . 2 Fortress 1 | . . . . . . . . . . . . . . . . . . . . . . 1 . Protovariant H 1 | . . . . . . . . . . . . . . . . . . . . . . 1 . Subdweller 5 | . . 5 . . . . . . . . . . . . . . . . . . . . . Butcher 1 | . . . . . . . . . . 1 . . . . . . . . . . . . . Best Kill Streak 14 | . . 2 . 9 . 4 . . 7 5 1 2 2 6 . 5 . 4 7 7 14 9 9 Combat Bots Only 7 | . . 2 . 5 . 4 . . 5 5 1 2 1 5 . 5 . 4 7 5 6 7 7 Max Kills in Single Turn 5 | . . 1 . 2 . 2 . . 4 3 1 1 2 5 . 4 . 1 4 3 3 3 2 Gunslinging 1 | . . . . . . . . . . . . . . . . . . . 1 . 1 . . Exploded 4 | . . 1 . 2 . 2 . . 3 3 . . 1 4 . 4 . 1 4 1 1 . . Melee 1 | . . 1 . . . . . . 1 1 . . . 1 . . . . . . . . . Uniques/NPCs Destroyed . | . . . . . . . . . . . . . . . . . . . . . . . . Combat | -11 -10 -10 -8 -6 -6 -6 -6 -5 -5 -5 -5 -5 -5 -4 -4 -4 -4 -3 -3 -3 -2 -2 -2 -------- Run | Yrd Mat Sub Scr Fac Low Low Zio Pro Fac Ext Cet Arc Hub Fac Upp Upp Zhi Pro Res Qua Res Tes Frg Hostile Shots Fired 1830 | . 1 22 . 139 9 39 . 2 18 70 26 . 3 147 . 19 . 45 258 321 201 137 373 Missed 451 | . . 6 . 38 5 16 . 1 4 20 12 . 2 47 . 7 . 9 56 63 56 26 83 Deflected 4 | . . . . . . . . . . . . . . . . . . . . . . . 4 Hits 1379 | . 1 16 . 101 4 23 . 1 14 50 14 . 1 100 . 12 . 36 202 258 145 111 290 Melee 26 | . . . . . . . . . . . . . . . . . . 2 24 . . . . Projectile 1353 | . 1 16 . 101 4 23 . 1 14 50 14 . 1 100 . 12 . 34 178 258 145 111 290 AOE 21 | . . 3 . . . . . . . . . . . . . . . . 5 . . . 13 Critical Strikes 85 | . . . . 2 . . . . 2 3 5 . . 2 . 2 . 3 10 10 10 14 22 Part Disruptions 8 | . . . . 2 . . . . . . . . . . . . . . . . . 1 5 Actively Blocked 3 | . . . . . . . . . . . . . . . . . . . . . . . 3 Damage Taken 33207 | . 12 620 . 1768 30 458 . 18 344 1170 300 250 123 1779 . 207 . 749 5719 5558 3579 1914 8609 Core 3071 | . . 225 . 128 6 33 . . . 84 25 . . 181 . . . 138 323 460 290 112 1066 Absorbed by Shields 1912 | . . . . . . . . . . 18 132 . . . . . . . 93 . . 636 1033 Reduced by Siege Mode 1199 | . . . . . . . . . . . . . . 113 . . . 28 431 401 12 92 122 Redirected to Shielding 270 | . . . . . 13 97 . . . . . . . . . . . 133 27 . . . . Ignored by Resistances 456 | . . . . . . . . . . . . . . . . . . . . . . 363 93 Regen/Repaired (Parts) 2969 | . . . . 84 . . 423 . . . . . . . . . . . 107 . . 716 1639 Core Remaining (%) 63 | 100 . . 10 . . . . 80 . . . . 89 . . . . 72 . 27 . . . Volleys Fired 808 | . 2 27 . 65 1 10 . 8 12 12 27 10 3 68 1 9 14 24 107 125 85 70 128 Largest 4 | . 2 2 . 3 1 1 . 1 1 2 1 1 1 3 1 3 1 3 3 3 4 4 4 Hottest 355 | . 90 120 . 107 40 40 . 80 80 86 47 47 36 240 80 106 35 119 255 273 348 338 355 Shots Fired 1739 | . 4 53 . 133 1 10 . 8 12 20 27 10 3 137 1 15 14 48 271 314 277 86 295 Gun 1165 | . 4 42 . 58 . . . . . . . . . 120 1 9 14 35 238 214 249 22 159 Cannon 460 | . . 6 . 64 . . . . . . 25 10 . 8 . 4 . 12 14 93 24 64 136 Launcher 103 | . . 5 . 11 1 10 . . 9 20 2 . 3 9 . 2 . 1 19 7 4 . . Special 11 | . . . . . . . . 8 3 . . . . . . . . . . . . . . Kinetic 588 | . . 47 . 116 1 10 . . 9 8 27 10 . 100 . 10 14 47 15 23 21 29 101 Thermal 1020 | . 2 6 . . . . . 8 3 . . . . 28 1 3 . . 237 284 250 52 146 Explosive 50 | . . . . . . . . . . 5 . . 3 9 . 2 . 1 19 7 4 . . Electromagnetic 81 | . 2 . . 17 . . . . . 7 . . . . . . . . . . 2 5 48 Robot Hit Streak 50 | . 1 9 . 11 . 3 . 2 8 10 14 5 . 9 . 3 8 9 28 50 18 40 26 Robot Miss Streak 7 | . 1 2 . 7 . 1 . 1 . 2 1 1 . 5 . 2 1 4 6 4 5 4 5 Penetration Max 3 | . . . . 1 . . . . . . . . . 2 . . 1 . 1 . . 3 2 Secondary Targets 16 | . . 1 . . . . . . . . . . . 1 . . . . 5 2 6 . 1 Max Gunslinging Chain 1 | . . 1 . . . . . . . . . . . 1 . . . . 1 1 1 . 1 Shots Hit Robots 1296 | . 2 30 . 90 . 10 . 6 20 46 22 7 . 97 . 7 13 32 201 244 182 66 221 Core Hits 861 | . 1 12 . 53 . 9 . 2 33 57 14 6 11 67 . 8 11 17 98 143 93 107 119 Critical Kills 63 | . . . . 1 . . . . . . . . . 13 . . 1 6 2 4 4 15 17 Critical Parts Destroyed 83 | . . . . 6 . 2 . . . . . . . 7 . 2 . 4 4 3 4 42 9 Critical Strikes 206 | . . . . 8 . 3 . 1 4 5 . 1 . 24 . 2 1 12 21 17 13 68 26 Burn 28 | . . . . . . . . 1 . . . . . . . . . . 15 7 5 . . Meltdown 7 | . . . . . . . . . . . . . . . . . . . . 3 . 1 3 Destroy 146 | . . . . 3 . . . . . . . . . 20 . 2 1 12 6 4 8 67 23 Blast 5 | . . . . 1 . . . . . . . 1 . . . . . . . 3 . . . Smash 7 | . . . . 4 . 3 . . . . . . . . . . . . . . . . . Sever 13 | . . . . . . . . . 4 5 . . . 4 . . . . . . . . . Melee Attacks 191 | . . 5 . 31 . 11 . . 41 49 . . 4 49 . . . . 1 . . . . Impact 42 | . . . . 31 . 11 . . . . . . . . . . . . . . . . . Slashing 149 | . . 5 . . . . . . 41 49 . . 4 49 . . . . 1 . . . . Piercing . | . . . . . . . . . . . . . . . . . . . . . . . . Sneak Attacks 21 | . . . . 10 . . . . 2 3 . . . 6 . . . . . . . . . Combat Hostiles 3 | . . . . . . . . . 1 2 . . . . . . . . . . . . . Follow-up Attacks . | . . . . . . . . . . . . . . . . . . . . . . . . Damage Inflicted 52094 | . 37 973 . 4493 . 845 . 64 1739 4003 1028 365 479 2899 . 423 128 481 8362 8529 5757 2736 8753 Guns 19835 | . 37 442 . 933 . . . . . . . . . 862 . 30 128 300 4482 5119 4750 398 2354 Cannons 13958 | . . 103 . 1190 . . . . . . 788 365 . 105 . . . 126 198 2233 458 2338 6054 Explosions 13394 | . . 391 . 1307 . 652 . . 955 2312 240 . 479 857 . 393 . 55 3682 1177 549 . 345 Melee 4810 | . . 37 . 1063 . 193 . . 751 1691 . . . 1075 . . . . . . . . . Ramming . | . . . . . . . . . . . . . . . . . . . . . . . . Kinetic 13032 | . . 833 . 3044 . 652 . . 955 1069 1028 365 . 615 . 30 128 426 219 590 294 608 2176 Thermal 25312 | . 24 103 . . . . . 64 33 . . . . 352 . . . . 4461 6762 4914 2125 6474 Explosive 7502 | . . . . . . . . . . 789 . . . 857 . 393 . 55 3682 1177 549 . . Electromagnetic 1438 | . 13 . . 386 . . . . . 454 . . 479 . . . . . . . . 3 103 Impact 1256 | . . . . 1063 . 193 . . . . . . . . . . . . . . . . . Slashing 3554 | . . 37 . . . . . . 751 1691 . . . 1075 . . . . . . . . . Piercing . | . . . . . . . . . . . . . . . . . . . . . . . . Highest Corruption 25 | . . . . . . . . . . . . . 2 3 . . . . 1 25 18 18 15 Average Corruption 8 | . . . . . . . . . . . . . 2 1 . . . . 1 11 13 8 5 Corruption Purged 30 | . . . . . . . . . . . . . . 3 . . . . . 2 . 19 6 Corruption Blocked . | . . . . . . . . . . . . . . . . . . . . . . . . Effects 201 | . . . . . . . . . . . . . . 5 . . . . 3 51 74 26 42 Message Errors 44 | . . . . . . . . . . . . . . 1 . . . . 3 10 16 3 11 Matter Fused 43 | . . . . . . . . . . . . . . 3 . . . . . 9 12 9 10 Heat Flow Errors 27 | . . . . . . . . . . . . . . . . . . . . 8 9 3 7 Energy Discharges 20 | . . . . . . . . . . . . . . . . . . . . 6 8 4 2 Parts Rejected 2 | . . . . . . . . . . . . . . . . . . . . 1 1 . . Parts Fused 3 | . . . . . . . . . . . . . . . . . . . . . 2 1 . Data Loss (minor) 23 | . . . . . . . . . . . . . . 1 . . . . . 6 10 3 3 Data Loss (major) 7 | . . . . . . . . . . . . . . . . . . . . 2 2 1 2 Misfires 13 | . . . . . . . . . . . . . . . . . . . . 4 6 . 3 Alerts 3 | . . . . . . . . . . . . . . . . . . . . 1 . . 2 Misdirections 1 | . . . . . . . . . . . . . . . . . . . . . 1 . . Weapon Failures 15 | . . . . . . . . . . . . . . . . . . . . 4 7 2 2 Overload Shots 25 | . . . . . . . . . . . . . . 3 . . . . 4 7 . . 11 Effects 3 | . . . . . . . . . . . . . . . . . . . 2 . . . 1 Heat Surge 3 | . . . . . . . . . . . . . . . . . . . 2 . . . 1 Overflow Damage 2453 | . . 3 . 849 . 96 . . 30 75 5 . . 149 . 31 . . 210 190 28 332 455 Projectiles 1031 | . . . . 27 . . . . . . . . . . . . . . . 190 27 332 455 Explosions 408 | . . 3 . 57 . 33 . . 1 64 5 . . 3 . 31 . . 210 . 1 . . Melee 1014 | . . . . 765 . 63 . . 29 11 . . . 146 . . . . . . . . . Knockbacks 41 | . . . . 9 . . . . . . . 3 . . . . . 1 . 7 . 16 5 Impact 3 | . . . . 3 . . . . . . . . . . . . . . . . . . . Kinetic 35 | . . . . 6 . . . . . . . 2 . . . . . 1 . 5 . 16 5 Secondary 3 | . . . . . . . . . . . . 1 . . . . . . . 2 . . . Self-Inflicted Damage 793 | . . 131 . 101 . 33 . . . 30 . . 105 . . 22 . . 249 38 16 . 68 Shots 24 | . . 5 . 4 . 1 . . . 2 . . 1 . . 1 . . 6 2 1 . 1 Rammed . | . . . . . . . . . . . . . . . . . . . . . . . . Targets Rammed . | . . . . . . . . . . . . . . . . . . . . . . . . Kicked . | . . . . . . . . . . . . . . . . . . . . . . . . Crushed . | . . . . . . . . . . . . . . . . . . . . . . . . Highest Temperature 538 | . 30 75 . 291 . 1 . 97 24 35 6 . 3 372 12 48 . 3 . 93 538 304 299 Average Temperature 75 | . 17 42 . 74 . 1 . 43 18 8 3 . 3 80 9 10 . 3 . 52 100 68 80 Received Heat Transfer 3459 | . 6 45 . 409 6 27 . 9 81 365 . . 9 72 . 21 . 138 420 895 270 117 569 Effects 8 | . . . . 1 . . . . . . . . . 4 . . . . . . 3 . . Shutdowns 3 | . . . . . . . . . . . . . . 1 . . . . . . 2 . . Energy Bleed 3 | . . . . . . . . . . . . . . 3 . . . . . . . . . Interference 1 | . . . . 1 . . . . . . . . . . . . . . . . . . . Matter Decay 1 | . . . . . . . . . . . . . . . . . . . . . 1 . . Siege Activations 45 | . . . . . . . . . . . . . . 1 . . . 2 9 12 4 7 10 Total Turns 925 | . . . . . . . . . . . . . . 27 . . . 13 193 258 64 211 159 Longest Duration 65 | . . . . . . . . . . . . . . 27 . . . 10 45 65 35 54 56 Martial Activations . | . . . . . . . . . . . . . . . . . . . . . . . . Shielding Activations 1 | . . . . . . . . . . . . . . . . . . . . . . . 1 Total Turns 17 | . . . . . . . . . . . . . . . . . . . . . . . 17 Longest Duration 17 | . . . . . . . . . . . . . . . . . . . . . . . 17 Robots Disrupted 12 | . 1 . . . . . . 2 1 . . . . . . . . . . . . . 8 Combat Hostiles 10 | . 1 . . . . . . 2 . . . . . . . . . . . . . . 7 Robots Corrupted 9 | . . . . 8 . 1 . . . . . . . . . . . . . . . . . Combat Hostiles 2 | . . . . 1 . 1 . . . . . . . . . . . . . . . . . Parts Fried 15 | . . . . 14 . . . . . 1 . . . . . . . . . . . . . Impact Corruptions 24 | . . . . 20 . 2 . . . . . . . . . . . . . 2 . . . Robots Melted 16 | . . . . . . . . . . . . . . . . . . . 7 4 1 1 3 Combat Hostiles 16 | . . . . . . . . . . . . . . . . . . . 7 4 1 1 3 Parts Melted 84 | . . . . . . . . 1 2 . . . . . . . . . 27 20 29 1 4 Heat Transferred 35455 | . 74 148 . . . . . 640 240 . . . . 444 . . . . 9141 11370 7325 1227 4846 Parts Sabotaged . | . . . . . . . . . . . . . . . . . . . . . . . . Parts Stolen . | . . . . . . . . . . . . . . . . . . . . . . . . Parts Stripped . | . . . . . . . . . . . . . . . . . . . . . . . . Power Chain Reactions 3 | . . . . . . . . . . . . . . . . . . . . . . . 3 Alert | -11 -10 -10 -8 -6 -6 -6 -6 -5 -5 -5 -5 -5 -5 -4 -4 -4 -4 -3 -3 -3 -2 -2 -2 ------- Run | Yrd Mat Sub Scr Fac Low Low Zio Pro Fac Ext Cet Arc Hub Fac Upp Upp Zhi Pro Res Qua Res Tes Frg Maximum Alert Level 4 | . . . . 3 . . . . 1 4 3 2 1 1 . . . . 3 2 2 1 2 Low Security (%) 44 | 100 100 . . 7 . . . . 76 52 . . 98 65 . . . . 77 67 14 10 35 Level 1 36 | . . . . 57 . . . . 23 7 . 68 1 34 . . . . 11 16 61 89 45 Level 2 12 | . . . . 27 . . . . . 12 28 31 . . . . . . 6 15 24 . 18 Level 3 4 | . . . . 7 . . . . . 13 71 . . . . . . . 4 . . . . Level 4 . | . . . . . . . . . . 13 . . . . . . . . . . . . . Level 5 . | . . . . . . . . . . . . . . . . . . . . . . . . High Security . | . . . . . . . . . . . . . . . . . . . . . . . . Max Security . | . . . . . . . . . . . . . . . . . . . . . . . . Peak Influence 1140 | . 30 . . 794 . . . . 365 1140 791 550 377 389 . . . . 897 512 534 357 674 Initial 608 | . . . . . . . . . . 95 608 281 119 184 . . . . 300 504 276 299 186 Average 262 | . 6 . . 385 . . . . 112 397 722 381 105 204 . . . . 142 172 321 264 303 Influence Increases 13205 | . 30 50 . 1426 15 295 . 15 755 1729 423 369 328 1345 . 280 . 110 1903 1166 1042 614 1310 Destroy 0b10 Robot/C 6140 | . . 40 . 540 . 120 . . 300 740 160 160 20 540 . 120 . 80 1040 700 540 320 720 Destroy 0b10 Robot/NC 450 | . . . . 70 . . . . 30 60 10 5 5 60 . . . 20 5 60 65 25 35 Destroy Leader 998 | . . 10 . 122 . 10 . . 62 54 . . 10 94 . 10 . 10 180 86 140 46 164 Allied During Kill 952 | . . . . 54 . . . . 46 517 170 165 . . . . . . . . . . . Trap Triggered on 0b10 20 | . . . . . . . . . . . . . . 20 . . . . . . . . . Successful Hack 390 | . . . . 30 . . . . 30 8 . . . 115 . . . . 82 22 21 7 75 Select Force Hacks 30 | . 30 . . . . . . . . . . . . . . . . . . . . . . Disable Machine 870 | . . . . 180 . . . . 45 75 15 15 75 75 . . . . 60 105 45 105 75 Anti-Garrison Action 200 | . . . . 200 . . . . . . . . . . . . . . . . . . . Destroy Structure 1625 | . . . . 125 . . . . 152 200 68 24 218 156 . . . . 176 148 66 66 226 Advance Influence 300 | . . . . . . . . . . . . . . . . . . . 300 . . . . Partial Spotted 135 | . . . . 15 . . . . 30 30 . . . 30 . . . . 15 15 . . . Lose Combat Pursuer 1095 | . . . . 90 15 165 . 15 60 45 . . . 255 . 150 . . 45 30 165 45 15 Influence Decreases 12927 | . 30 50 . 1076 300 317 43 15 558 840 806 732 291 1344 331 327 . 110 1006 1570 1003 815 1363 Entered New Map 2741 | . . . . . 130 13 43 . . 102 478 422 221 193 141 10 . . . 393 217 233 145 Time Decay 6160 | . 30 50 . 526 170 294 . 15 288 458 238 40 70 591 190 290 . 80 477 607 616 562 568 Lost Part 1260 | . . . . 80 . 10 . . 10 20 10 30 . 80 . 20 . 30 180 270 170 20 330 Lost Ally 767 | . . . . 20 . . . . 110 260 80 240 . 30 . 7 . . . . . . 20 Purge Threat 1999 | . . . . 450 . . . . 150 . . . . 450 . . . . 349 300 . . 300 Squads Dispatched 82 | . 1 . . 23 . 1 . . 6 3 . . 2 14 . . . . 6 6 8 6 6 Investigation 30 | . 1 . . 10 . 1 . . 3 . . . 1 7 . . . . 6 . 1 . . Extermination 26 | . . . . 3 . . . . 1 . . . . 5 . . . . . 4 5 4 4 Reinforcement 19 | . . . . 6 . . . . 2 2 . . 1 1 . . . . . 2 1 2 2 Assault 4 | . . . . 2 . . . . . 1 . . . . . . . . . . 1 . . Garrison 3 | . . . . 2 . . . . . . . . . 1 . . . . . . . . . Intercept . | . . . . . . . . . . . . . . . . . . . . . . . . Searches Triggered . | . . . . . . . . . . . . . . . . . . . . . . . . Unchained Authorized 1 | . . . . . . . . . . . . . . . . . . . . . . 1 . Construction Impeded 8 | . . . . 4 . . . . . 1 . . . 1 . . . . . 1 1 . . Haulers Reinforced 2 | . . . . 1 . . . . 1 . . . . . . . . . . . . . . Active Scanning Responses . | . . . . . . . . . . . . . . . . . . . . . . . . Cargo Convoy Interrupts . | . . . . . . . . . . . . . . . . . . . . . . . . Stealth | -11 -10 -10 -8 -6 -6 -6 -6 -5 -5 -5 -5 -5 -5 -4 -4 -4 -4 -3 -3 -3 -2 -2 -2 --------- Run | Yrd Mat Sub Scr Fac Low Low Zio Pro Fac Ext Cet Arc Hub Fac Upp Upp Zhi Pro Res Qua Res Tes Frg Distress Signals 20 | . . . . . . . . . . 1 2 1 . 3 . . . . 5 4 2 . 2 Communications Jammed . | . . . . . . . . . . . . . . . . . . . . . . . . Distress Signals . | . . . . . . . . . . . . . . . . . . . . . . . . Times Spotted 474 | . 4 9 . 36 1 17 . 4 27 39 9 14 6 43 . 16 . 6 59 60 47 25 52 Peak Tracking Total 16 | . 3 2 . 8 1 13 . 3 9 8 5 16 14 6 . 7 . 4 6 9 6 5 8 Tactical Retreats 41 | . . . . 4 1 4 . 1 3 3 . . . 9 . 4 . . 3 1 4 3 1 Traps | -11 -10 -10 -8 -6 -6 -6 -6 -5 -5 -5 -5 -5 -5 -4 -4 -4 -4 -3 -3 -3 -2 -2 -2 ------- Run | Yrd Mat Sub Scr Fac Low Low Zio Pro Fac Ext Cet Arc Hub Fac Upp Upp Zhi Pro Res Qua Res Tes Frg Traps Triggered 19 | . . . . . . . . . . 3 . . . 1 . . . . . . 12 1 2 Indirectly . | . . . . . . . . . . . . . . . . . . . . . . . . Trap Hack Attempts . | . . . . . . . . . . . . . . . . . . . . . . . . Triggered . | . . . . . . . . . . . . . . . . . . . . . . . . Disarmed . | . . . . . . . . . . . . . . . . . . . . . . . . Reprogrammed 12 | . . . . . . . . . . . . . . 12 . . . . . . . . . Reused 2 | . . . . . . . . . . . . . . 2 . . . . . . . . . Traps Extracted . | . . . . . . . . . . . . . . . . . . . . . . . . Installed . | . . . . . . . . . . . . . . . . . . . . . . . . Triggered 2 | . . . . . . . . . . . . . . 2 . . . . . . . . . Machines | -11 -10 -10 -8 -6 -6 -6 -6 -5 -5 -5 -5 -5 -5 -4 -4 -4 -4 -3 -3 -3 -2 -2 -2 ---------- Run | Yrd Mat Sub Scr Fac Low Low Zio Pro Fac Ext Cet Arc Hub Fac Upp Upp Zhi Pro Res Qua Res Tes Frg Machines Disabled 64 | . . 1 . 12 . . . . 3 8 1 1 5 5 . 1 . . 4 7 3 8 5 Max in Single Turn 5 | . . 1 . 2 . . . . 2 2 1 . 5 2 . 1 . . 1 1 1 1 3 Garrison Access 6 | . . . . 2 . . . . 1 . . . . 1 . . . . . . 1 1 . Network Hub 1 | . . . . . . . . . . . . . 1 . . . . . . . . . . Machines Repaired . | . . . . . . . . . . . . . . . . . . . . . . . . Machines Dismantled 3 | . . . . . . . . . . 2 1 . . . . . . . . . . . . Machines Sabotaged . | . . . . . . . . . . . . . . . . . . . . . . . . Overloaded Fab Kills . | . . . . . . . . . . . . . . . . . . . . . . . . Hacking | -11 -10 -10 -8 -6 -6 -6 -6 -5 -5 -5 -5 -5 -5 -4 -4 -4 -4 -3 -3 -3 -2 -2 -2 --------- Run | Yrd Mat Sub Scr Fac Low Low Zio Pro Fac Ext Cet Arc Hub Fac Upp Upp Zhi Pro Res Qua Res Tes Frg Machines Accessed 140 | . 1 2 3 19 . 1 . . 13 16 1 1 3 23 2 3 6 . 13 10 10 5 8 Terminals 74 | . . . . 8 . 1 . . 7 16 1 . 3 12 . 1 . . 3 8 4 3 7 Fabricators 6 | . . . . . . . . . 1 . . . . 2 . . . . 1 . 2 . . Repair Stations 5 | . . . . 2 . . . . 1 . . . . . . . . . 1 1 . . . Recycling Units 16 | . 1 . . 5 . . . . 2 . . . . 5 . . . . 2 . 1 . . Scanalyzers 14 | . . . . 2 . . . . 1 . . . . 2 . . . . 4 1 2 1 1 Garrison Access 9 | . . . . 2 . . . . 1 . . . . 2 . . . . 2 . 1 1 . Total Hacks 478 | . 1 5 28 53 . 4 . . 34 29 3 25 8 92 6 12 19 . 49 33 31 13 33 Successful 285 | . 1 5 28 31 . 4 . . 19 18 . 25 2 56 6 12 19 . 22 10 12 3 12 Failed 187 | . . . . 21 . . . . 15 11 3 . 6 35 . . . . 26 22 19 9 20 Catastrophic 28 | . . . . 4 . . . . 1 . . . 1 4 . . . . 4 5 3 3 3 Database Lockouts 6 | . . . . 1 . . . . . . . . . 1 . . . . 1 1 . 1 1 Manual 146 | . 1 . . 19 . . . . 16 6 1 . 1 52 . . . . 18 6 16 . 10 Terminals 261 | . . . . 30 . 4 . . 22 29 3 . 8 63 . 8 . . 17 23 19 6 29 Fabricators 16 | . . . . . . . . . 2 . . . . 8 . . . . 3 . 3 . . Repair Stations 16 | . . . . 5 . . . . 1 . . . . . . . . . 4 6 . . . Recycling Units 36 | . 1 . . 11 . . . . 5 . . . . 13 . . . . 5 . 1 . . Scanalyzers 41 | . . . . 4 . . . . 2 . . . . 3 . . . . 16 4 5 3 4 Garrison Access 21 | . . . . 3 . . . . 2 . . . . 5 . . . . 4 . 3 4 . Terminal Hacks 184 | . . 5 28 11 . 4 . . 8 14 . 25 2 25 6 12 19 . 5 7 4 1 8 Record 89 | . . 4 28 . . 4 . . . . . 25 . . 5 11 7 . . 4 . . 1 Part Schematic 11 | . . . . . . . . . 1 . . . . 6 . . 4 . . . . . . Robot Analysis 5 | . . . . 1 . . . . . . . . . . . . 4 . . . . . . Prototype ID Bank 4 | . . . . . . . . . . . . . . . . . 4 . . . . . . Open Door 15 | . . . . . . . . . . 12 . . . . 1 1 . . . . . 1 . Level Access Points 1 | . . . . . . . . . . . . . . 1 . . . . . . . . . Branch Access Points 4 | . . . . 1 . . . . . . . . 1 1 . . . . . . 1 . . Machine Index 2 | . . . . 1 . . . . 1 . . . . . . . . . . . . . . Terminal Index 3 | . . . . . . . . . . . . . . 1 . . . . . . 1 . 1 Recycling Unit Index 3 | . . . . . . . . . 1 . . . . 1 . . . . . . . . 1 Alert Level 10 | . . . . 1 . . . . 2 1 . . 1 4 . . . . 1 . . . . Unreport Threat 14 | . . . . 3 . . . . 1 . . . . 3 . . . . 3 2 . . 2 Locate Traps 9 | . . . . 3 . . . . 1 1 . . . 1 . . . . 1 1 . . 1 Reprogram Traps 3 | . . . . . . . . . . . . . . 3 . . . . . . . . . Security Status 1 | . . . . . . . . . . . . . . 1 . . . . . . . . . Patrol Status 1 | . . . . . . . . . 1 . . . . . . . . . . . . . . Recall Investigation 1 | . . . . . . . . . . . . . . 1 . . . . . . . . . Registered Components 3 | . . . . 1 . . . . . . . . . 1 . . . . . . 1 . . Registered Prototypes 1 | . . . . . . . . . . . . . . 1 . . . . . . . . . Zone Layout 3 | . . . . . . . . . . . . . . . . . . . . . 1 . 2 Proto ID Catalog 1 | . . 1 . . . . . . . . . . . . . . . . . . . . . Fabricator Hacks 10 | . . . . . . . . . 1 . . . . 4 . . . . 3 . 2 . . Network Status 4 | . . . . . . . . . 1 . . . . 1 . . . . 1 . 1 . . Load Schematic 3 | . . . . . . . . . . . . . . 1 . . . . 1 . 1 . . Build 3 | . . . . . . . . . . . . . . 2 . . . . 1 . . . . Repair Station Hacks 8 | . . . . 4 . . . . . . . . . . . . . . 3 1 . . . Scan Component 5 | . . . . 2 . . . . . . . . . . . . . . 2 1 . . . Repair 3 | . . . . 2 . . . . . . . . . . . . . . 1 . . . . Recycling Unit Hacks 7 | . . . . 3 . . . . 1 . . . . 3 . . . . . . . . . Report Inventory 1 | . . . . 1 . . . . . . . . . . . . . . . . . . . Retrieve Components 6 | . . . . 2 . . . . 1 . . . . 3 . . . . . . . . . Scanalyzer 18 | . . . . 1 . . . . 1 . . . . 3 . . . . 7 1 1 1 3 Insert Component 2 | . . . . . . . . . . . . . . 1 . . . . 1 . . . . Analyze 3 | . . . . . . . . . . . . . . 1 . . . . 2 . . . . Retrieve Study 13 | . . . . 1 . . . . 1 . . . . 1 . . . . 4 1 1 1 3 Garrison Access Hacks 5 | . . . . 1 . . . . 1 . . . . 1 . . . . . . 1 1 . Seal Access 5 | . . . . 1 . . . . 1 . . . . 1 . . . . . . 1 1 . Unauthorized Hacks 53 | . 1 . . 11 . . . . 7 4 . . . 20 . . . . 4 1 4 . 1 Terminals 36 | . . . . 6 . . . . 5 4 . . . 13 . . . . 3 1 3 . 1 Track 3 | . . . . . . . . . . . . . . 2 . . . . . . 1 . . Assimilate 4 | . . . . . . . . . 1 . . . . 2 . . . . 1 . . . . Botnet 22 | . . . . 4 . . . . 3 2 . . . 8 . . . . 1 1 2 . 1 Disrupt 1 | . . . . . . . . . . 1 . . . . . . . . . . . . . Operators 6 | . . . . 2 . . . . 1 1 . . . 1 . . . . 1 . . . . Fabricators . | . . . . . . . . . . . . . . . . . . . . . . . . Repair Stations . | . . . . . . . . . . . . . . . . . . . . . . . . Recycling Units 14 | . 1 . . 4 . . . . 2 . . . . 5 . . . . 1 . 1 . . Tunnel 1 | . 1 . . . . . . . . . . . . . . . . . . . . . . Fedlink 11 | . . . . 4 . . . . 1 . . . . 4 . . . . 1 . 1 . . Scrapoids 2 | . . . . . . . . . 1 . . . . 1 . . . . . . . . . Scanalyzers . | . . . . . . . . . . . . . . . . . . . . . . . . Garrison Access 3 | . . . . 1 . . . . . . . . . 2 . . . . . . . . . Decoy 1 | . . . . . . . . . . . . . . 1 . . . . . . . . . Watchers 1 | . . . . . . . . . . . . . . 1 . . . . . . . . . Jam 1 | . . . . 1 . . . . . . . . . . . . . . . . . . . Data Cores Recovered . | . . . . . . . . . . . . . . . . . . . . . . . . Used . | . . . . . . . . . . . . . . . . . . . . . . . . Hacking Detections 91 | . . . . 14 . 1 . . 11 6 1 . 3 19 . 1 . . 11 7 7 2 8 Full Trace Events 13 | . . . . 4 . 1 . . 1 . . . 1 2 . . . . 4 . . . . Feedback Events 1 | . . . . . . . . . . . . . . 1 . . . . . . . . . Corruption 1 | . . . . . . . . . . . . . . 1 . . . . . . . . . Feedback Blocked . | . . . . . . . . . . . . . . . . . . . . . . . . Robot Schematics Acquired 4 | . . . . . . . 3 . . . . . . . . . . . . 1 . . . Robots Built . | . . . . . . . . . . . . . . . . . . . . . . . . Authchips . | . . . . . . . . . . . . . . . . . . . . . . . . Time . | . . . . . . . . . . . . . . . . . . . . . . . . Total Robot Build Rating . | . . . . . . . . . . . . . . . . . . . . . . . . Part Schematics Acquired 35 | . . . . . . . 15 . 1 . . . . 7 . . 4 . . 3 . 5 . Parts Built 6 | . . . . . . . . . . . . . . 4 . . . . 2 . . . . Authchips . | . . . . . . . . . . . . . . . . . . . . . . . . Time 180 | . . . . . . . . . . . . . . 122 . . . . 58 . . . . Total Part Build Rating 44 | . . . . . . . . . . . . . . 30 . . . . 14 . . . . Part Studies Acquired 13 | . . . . 1 . . . . 1 . . . . 1 . . . . 4 1 1 1 3 Parts Repaired 3 | . . . . 2 . . . . . . . . . . . . . . 1 . . . . Time 101 | . . . . 66 . . . . . . . . . . . . . . 35 . . . . Parts Recycled . | . . . . . . . . . . . . . . . . . . . . . . . . Recycled Matter . | . . . . . . . . . . . . . . . . . . . . . . . . Retrieved Matter . | . . . . . . . . . . . . . . . . . . . . . . . . Retrieved Components 10 | . . . . 5 . . . . 3 . . . . 2 . . . . . . . . . Parts Scanalyzed 2 | . . . . . . . . . . . . . . 1 . . . . 1 . . . . Part Schematics Acquired 1 | . . . . . . . . . . . . . . 1 . . . . . . . . . Parts Damaged . | . . . . . . . . . . . . . . . . . . . . . . . . Bothacking | -11 -10 -10 -8 -6 -6 -6 -6 -5 -5 -5 -5 -5 -5 -4 -4 -4 -4 -3 -3 -3 -2 -2 -2 ------------ Run | Yrd Mat Sub Scr Fac Low Low Zio Pro Fac Ext Cet Arc Hub Fac Upp Upp Zhi Pro Res Qua Res Tes Frg Used RIF Installer . | . . . . . . . . . . . . . . . . . . . . . . . . Robots Hacked . | . . . . . . . . . . . . . . . . . . . . . . . . Non-combat . | . . . . . . . . . . . . . . . . . . . . . . . . Combat . | . . . . . . . . . . . . . . . . . . . . . . . . Robot Hacks Applied . | . . . . . . . . . . . . . . . . . . . . . . . . Relay Couplers Released 3 | . . . . . . . . . . . . . . . . . . . . . . . 3 Programmers 3 | . . . . . . . . . . . . . . . . . . . . . . . 3 Fabnet Peak Effective % . | . . . . . . . . . . . . . . . . . . . . . . . . Robots Rewired 16 | . . . . . . . . 2 1 11 . . . 1 . . . . . . . . 1 Allies Hacked 1 | . . . . . . . . . . . . . . 1 . . . . . . . . . Hacks Repelled . | . . . . . . . . . . . . . . . . . . . . . . . . Allies | -11 -10 -10 -8 -6 -6 -6 -6 -5 -5 -5 -5 -5 -5 -4 -4 -4 -4 -3 -3 -3 -2 -2 -2 -------- Run | Yrd Mat Sub Scr Fac Low Low Zio Pro Fac Ext Cet Arc Hub Fac Upp Upp Zhi Pro Res Qua Res Tes Frg Total Allies 52 | . . . 1 . . . . 2 7 31 5 . . 3 . 2 . . . . . . 1 Largest Group 16 | . . . 1 1 . . . 1 6 14 16 14 . 1 . 2 . . . . . . 1 Highest-Rated Group 899 | . . . 82 82 . . . 29 261 521 899 734 . 49 . 67 . . . . . . 52 Highest-Rated Ally 159 | . . . 82 82 . . . 29 50 159 159 96 . 49 . 38 . . . . . . 52 Total Orders 4 | . . . 3 . . . . . 1 . . . . . . . . . . . . . . STAY 1 | . . . 1 . . . . . . . . . . . . . . . . . . . . FOLLOW 2 | . . . 2 . . . . . . . . . . . . . . . . . . . . DROP 1 | . . . . . . . . . 1 . . . . . . . . . . . . . . Ally Attacks 397 | . . . . 43 . . . 7 47 205 56 31 . 4 . 3 . . . . . . 1 Total Damage 9060 | . . . . 1512 . . . 115 1171 3478 1460 970 . 171 . 147 . . . . . . 36 Kills 57 | . . . . 9 . . . . 7 25 9 7 . . . . . . . . . . . Allies Corrupted . | . . . . . . . . . . . . . . . . . . . . . . . . Allies Melted 3 | . . . . 1 . . . . . 2 . . . . . . . . . . . . . Intel | -11 -10 -10 -8 -6 -6 -6 -6 -5 -5 -5 -5 -5 -5 -4 -4 -4 -4 -3 -3 -3 -2 -2 -2 ------- Run | Yrd Mat Sub Scr Fac Low Low Zio Pro Fac Ext Cet Arc Hub Fac Upp Upp Zhi Pro Res Qua Res Tes Frg Active Infowar (turns) 19806 | . . 837 . 1307 344 659 417 187 713 1151 509 92 150 1755 394 1245 220 651 2809 1801 1950 1403 1212 Optics 1363 | . . 837 . . . . . . . . . . . 526 . . . . . . . . . Sensors 18613 | . . . . 1012 344 659 417 187 713 1151 509 92 150 1748 394 1245 220 651 2809 1801 1921 1402 1188 IFF 311 | . . . . 311 . . . . . . . . . . . . . . . . . . . Terrain 6511 | . . . . 354 344 659 417 187 713 1151 509 92 150 1534 394 7 . . . . . . . Structural 1754 | . . . . 30 . . . . . . . . . . . . . . . . 651 160 913 Decoding 2480 | . . . . . . . 381 187 713 1151 48 . . . . . . . . . . . . Robot Analysis Total 5 | . . . . 1 . . . . . . . . . . . . 4 . . . . . . Derelict Logs Recovered 15 | . . 1 4 . 2 1 1 1 . . . . . . 2 3 . . . . . . . Drone Launches . | . . . . . . . . . . . . . . . . . . . . . . . . Drone Recoveries . | . . . . . . . . . . . . . . . . . . . . . . . . Decoded 0b10 Intel 23 | . . . . . . . . . 16 7 . . . . . . . . . . . . . Traps 14 | . . . . . . . . . 10 4 . . . . . . . . . . . . . Emergency Access 8 | . . . . . . . . . 6 2 . . . . . . . . . . . . . Exits 1 | . . . . . . . . . . 1 . . . . . . . . . . . . . Exploration | -11 -10 -10 -8 -6 -6 -6 -6 -5 -5 -5 -5 -5 -5 -4 -4 -4 -4 -3 -3 -3 -2 -2 -2 ------------- Run | Yrd Mat Sub Scr Fac Low Low Zio Pro Fac Ext Cet Arc Hub Fac Upp Upp Zhi Pro Res Qua Res Tes Frg Turns Passed 24646 | 40 117 1259 2759 1626 344 659 417 187 713 1151 509 92 150 1861 394 1245 220 651 2826 1977 2056 1677 1716 Spaces Moved 20552 | 40 104 1044 2620 1265 653 1018 1016 295 1190 966 371 82 202 2047 389 1098 173 492 1962 847 1198 648 832 Core 2 | 2 . . . . . . . . . . . . . . . . . . . . . . . Treads 89 | . . . . . . . . . . . . . . 4 . . . 6 19 60 . . . Legs 406 | . . . . . . . . . . . . . . . . . . . . . . . 406 Wheels 11959 | 38 104 1044 2620 515 . . . . . . . . . 490 389 1098 173 486 1943 787 1198 648 426 Hover 781 | . . . . . . . . . . . . . . 781 . . . . . . . . . Flight 7315 | . . . . 750 653 1018 1016 295 1190 966 371 82 202 772 . . . . . . . . . Fastest Speed 28 | 50 80 80 100 40 40 40 40 40 34 37 37 37 40 28 100 100 100 112 102 100 89 120 100 Average Speed 82 | 78 80 96 100 86 40 40 40 40 36 37 37 37 40 50 100 100 105 113 112 126 114 137 118 Slowest Speed 270 | 80 80 120 120 205 40 40 40 40 40 37 37 40 40 200 100 100 112 270 270 237 240 151 205 Overloaded Moves . | . . . . . . . . . . . . . . . . . . . . . . . . Propulsion Burnouts . | . . . . . . . . . . . . . . . . . . . . . . . . Robots Hopped 41 | . . . . 5 . . . 1 8 24 . . 1 2 . . . . . . . . . Potential Cave-ins 2 | . . . . . . . . . . . . . 2 . . . . . . . . . . Cave-ins Triggered . | . . . . . . . . . . . . . . . . . . . . . . . . Teleports 3 | . . . . . . . . . . . . . . . . . . . . 3 . . . Exploration Rate (%) 57 | 3 20 48 89 36 83 80 85 54 34 85 77 85 25 58 61 88 62 62 58 67 30 60 31 Regions Visited 23 Branch Regions 17 Pre-discovered Areas 14 | . 1 . 6 1 . 1 1 . . . . . . . . 1 3 . . . . . . Known Exits Taken 20 | . . . 1 1 1 1 1 1 1 1 1 1 1 1 1 1 1 1 1 1 1 1 . Unknown Exits Taken 3 | 1 1 1 . . . . . . . . . . . . . . . . . . . . . Scrap Searched 31 | . . 11 6 . 2 3 4 . . . . . . . 1 4 . . . . . . . Spaces Dug 188 | . . . . 12 . 14 . . 42 1 . . 30 55 1 1 . . 14 6 1 3 8 Terrain Destroyed 1174 | . . 42 . 143 16 98 . . 69 136 38 . 173 94 1 23 . 12 128 90 31 22 58 Melee 71 | . . . . 12 . 5 . . 25 1 . . 4 23 . . . . 1 . . . . Projectile 113 | . . 3 . 16 . . . . . . 3 . . 10 1 1 . 2 9 26 11 7 24 AOE 956 | . . 39 . 115 16 93 . . 44 135 35 . 169 58 . 22 . 10 118 64 20 . 18 Terrain Rammed . | . . . . . . . . . . . . . . . . . . . . . . . . Walls Destroyed . | . . . . . . . . . . . . . . . . . . . . . . . . Machines Disabled . | . . . . . . . . . . . . . . . . . . . . . . . . Actions | -11 -10 -10 -8 -6 -6 -6 -6 -5 -5 -5 -5 -5 -5 -4 -4 -4 -4 -3 -3 -3 -2 -2 -2 --------- Run | Yrd Mat Sub Scr Fac Low Low Zio Pro Fac Ext Cet Arc Hub Fac Upp Upp Zhi Pro Res Qua Res Tes Frg Total 26360 | 45 133 1236 2756 1609 734 1236 1025 347 1381 1622 705 133 259 2662 393 1230 198 541 2361 1467 1675 1320 1292 Wait 3757 | . 26 127 64 179 81 197 3 39 128 510 291 41 50 402 4 99 1 15 133 352 278 505 232 Move 20460 | 39 103 1043 2619 1254 652 1017 1015 292 1176 927 370 81 199 2042 388 1097 172 491 1961 846 1197 647 832 Hop 28 | . . . . 5 . . . 1 5 14 . . 1 2 . . . . . . . . . Pick Up 207 | . 2 10 32 13 . . . . 1 . . . . 22 . 8 3 3 36 33 16 22 6 Fast Attach 177 | 6 . 8 2 25 . 1 4 . 7 4 4 . 1 21 . 6 3 1 17 21 25 11 10 Attach 115 | . . 2 2 8 . . . . . 1 . . . 6 . 2 . 4 26 24 16 4 20 Detach 33 | . . . 3 1 . . . . . 1 . . . 1 . . . . 10 2 4 4 7 Swap 190 | . . 3 2 5 . . . . 1 5 2 . 1 25 . 2 . 3 32 35 14 28 32 Drop 233 | . . 11 32 23 . . 3 . 6 3 3 1 . 22 . 7 5 . 38 29 16 29 5 Fire 808 | . 2 27 . 65 1 10 . 8 12 12 27 10 3 68 1 9 14 24 107 125 85 70 128 Melee 191 | . . 5 . 31 . 11 . . 41 49 . . 4 49 . . . . 1 . . . . Ram . | . . . . . . . . . . . . . . . . . . . . . . . . Kick . | . . . . . . . . . . . . . . . . . . . . . . . . Crush . | . . . . . . . . . . . . . . . . . . . . . . . . Escape Stasis 85 | . . . . . . . . . . 45 . . . . . . . . . . 24 . 16 Rewire 52 | . . . . . . . . 7 4 35 . . . 2 . . . . . . . . 4 Trap . | . . . . . . . . . . . . . . . . . . . . . . . . Miscellaneous 24 | . . . . . . . . . . 16 8 . . . . . . . . . . . . Route ------- -11/Scrapyard -10/Materials (discovered 3 exits: [*Min x2] / *Sub) -10/Subcaves (discovered 2 exits: [*Mat] / *Scr) -8/Scraptown (discovered 2 exits: *Fac x2) -6/Factory (discovered 2 exits: *Low x2) -6/Lower Caves -6/Lower Caves (discovered 2 exits: *Fac / *Zio) -6/Zion (discovered 2 exits: [Dee] / *Pro) -5/Proximity Caves -5/Factory (discovered 5 exits: Fac x3 / *Ext x2) -5/Extension (discovered 3 exits: *Fac x2 / *Cet) -5/Cetus (discovered 2 exits: *Fac / *Arc) -5/Archives (discovered 3 exits: *Fac / *Hub x2) -5/Hub_04(d) (discovered 3 exits: *Fac x3) -4/Factory (discovered 7 exits: *Res x4 / *Upp x2 / Arm) -4/Upper Caves -4/Upper Caves (discovered 2 exits: Res / *Zhi) -4/Zhirov -3/Proximity Caves -3/Research (discovered 2 exits: *Qua x2) -3/Quarantine -2/Research (discovered 3 exits: *Acc / *Tes x2) -2/Testing (discovered 2 exits: *Sec / *Frg) -2/Protoforge (discovered 1 exit: *Acc) History --------- Turn | Location | Event 10 | -11/Scrapyard | Discovered new exit (range 16) 41 | -11/Scrapyard | Entered Materials 42 | -10/Materials | Met a group of wandering Federalists 96 | -10/Materials | Discovered new exit (range 7) 99 | -10/Materials | Discovered new exit (range 16) 114 | -10/Materials | Discovered new exit (range 3) 158 | -10/Materials | Entered Subcaves 159 | -10/Subcaves | Continued accompanying wandering Federalists (6) 159 | -10/Subcaves | Approached by a straggling Scientist 186 | -10/Subcaves | Shifting Twisted Machinery released Ripper 187 | -10/Subcaves | Shifting Twisted Machinery released Battle Rifle 201 | -10/Subcaves | Visited Clippyterm 203 | -10/Subcaves | Learned Factory stockpile data 220 | -10/Subcaves | Learned Materials emergency access door positions 259 | -10/Subcaves | Disturbed a concealed Subdweller 311 | -10/Subcaves | Build established: Mutant 417 | -10/Subcaves | Wandering Federalist uncovered a shortcut to Scraptown 637 | -10/Subcaves | Visited 4L-MR0's lab 651 | -10/Subcaves | Found Flightbrick 750 | -10/Subcaves | Ambushed by Subdweller buried in earth 781 | -10/Subcaves | A swath of the cavern ceiling suddenly collapsed 796 | -10/Subcaves | Lost 3 parts (1p2n) 983 | -10/Subcaves | Discovered new exit (range 8) 1076 | -10/Subcaves | Build established: Scavenger-Mutant 1130 | -10/Subcaves | A swath of the cavern ceiling suddenly collapsed 1274 | -10/Subcaves | Core integrity fell below 50% 1282 | -10/Subcaves | Core integrity fell below 20% 1417 | -10/Subcaves | Entered Scraptown 1535 | -8/Scraptown | Build established: Mutant 1688 | -8/Scraptown | Scanned Subdweller tech in exchange for log data 1690 | -8/Scraptown | Learned Research emergency access door positions 1691 | -8/Scraptown | Learned 12 Research zone layouts 1692 | -8/Scraptown | Learned Research terminal intel 1693 | -8/Scraptown | Learned location of Zion (-6) 1801 | -8/Scraptown | Visited UFD Registry 1801 | -8/Scraptown | Registered with UFD as "Boltbrain" 1850 | -8/Scraptown | Discovered new exit (range 11) 1871 | -8/Scraptown | Guru changed UFD alias to "Quantumform" 2004 | -8/Scraptown | Visited Shadow of the Wyrm 2010 | -8/Scraptown | Visited Fellowship of the Rings 2036 | -8/Scraptown | Visited Science Testing Area 2064 | -8/Scraptown | Visited Spacefarers 2072 | -8/Scraptown | Visited CPS Storage 2096 | -8/Scraptown | Visited Awakened 2110 | -8/Scraptown | Visited The Evicted 2132 | -8/Scraptown | Learned location of Extension (-5) 2308 | -8/Scraptown | Visited Chapter 10 2322 | -8/Scraptown | Visited Scrap Suit Storage 2336 | -8/Scraptown | Visited Botcube Research 2357 | -8/Scraptown | Found Lrg. Botcube 2380 | -8/Scraptown | Found Scrap Suit 2408 | -8/Scraptown | Visited Curators Association 2423 | -8/Scraptown | Visited Derelict Rescue Squad 2429 | -8/Scraptown | Found DRS Beacon 2447 | -8/Scraptown | Visited Observation Area 2456 | -8/Scraptown | Visited Supply Room 2721 | -8/Scraptown | Visited A0-MCA Data Center 2730 | -8/Scraptown | Given a B- rating by A0-MCA 2735 | -8/Scraptown | Found A0-MCA's Component Scanner 2768 | -8/Scraptown | Visited LU-1G1's Boring Crew 2784 | -8/Scraptown | Visited Cartography Club 2804 | -8/Scraptown | Found Surveybot 17 Chip 2844 | -8/Scraptown | Learned location of Recycling (-8) 2844 | -8/Scraptown | Learned location of Upper Caves (-4) 2844 | -8/Scraptown | Learned location of Hub_04(d) (-5) 2844 | -8/Scraptown | Learned 8 Materials zone layouts 2844 | -8/Scraptown | Learned 4 Mines zone layouts 2844 | -8/Scraptown | Learned 8 Lower Caves zone layouts 2844 | -8/Scraptown | Learned 12 Lower Caves zone layouts 2844 | -8/Scraptown | Learned 16 Upper Caves zone layouts 2844 | -8/Scraptown | Learned 24 Upper Caves zone layouts 2844 | -8/Scraptown | Learned 4 Hub_04(d) zone layouts 2844 | -8/Scraptown | Learned 24 Proximity Caves zone layouts 2844 | -8/Scraptown | Learned 4 Armory zone layouts 2844 | -8/Scraptown | Learned Research emergency access door positions 2844 | -8/Scraptown | Learned location of 1 exit from Research 2844 | -8/Scraptown | Learned location of 3 exits from Proximity Caves 2844 | -8/Scraptown | Identified exit to Factory 2882 | -8/Scraptown | Found Deep Structural Scanner 3949 | -8/Scraptown | Lrg. Botcube activated 3983 | -8/Scraptown | Lrg. Botcube completed mutation into treaded form, armed with 3 cannons, 1 special weapon. 4116 | -8/Scraptown | Met Optimus 4116 | -8/Scraptown | Accepted into 0bPrime 4176 | -8/Scraptown | Entered Factory 4176 | -6/Factory | Accompanied by 1 ally 4176 | -6/Factory | Evolved 8 slots: Propulsion x2, Utility x5, Weapon x1 4229 | -6/Factory | Garrison activated, responded to threat 4959 | -6/Factory | Garrison activated, responded to threat 4983 | -6/Factory | Loaded intel: 8 recycling unit locations 5090 | -6/Factory | Lost 4 parts (1n3u) 5226 | -6/Factory | First assault squad dispatched 5285 | -6/Factory | Attached Flightbrick, gained temporary slots: Utility x3 5327 | -6/Factory | Learned location of Protoforge (-2) 5357 | -6/Factory | Identified exit to Lower Caves 5505 | -6/Factory | Central database locked down 5589 | -6/Factory | Repaired Sub. Shrapnel Launcher 5772 | -6/Factory | Repaired Adv. Sensor Array 5802 | -6/Factory | Entered Lower Caves 5803 | -6/Lower Caves | Identified exit to Lower Caves 5827 | -6/Lower Caves | Attracted the attention of an 0b10 checkpoint 5857 | -6/Lower Caves | Build established: Hacker-Scout 5954 | -6/Lower Caves | Learned Factory stockpile data 6137 | -6/Lower Caves | Spotted B-75 Beast 6146 | -6/Lower Caves | Entered another Lower Caves area 6244 | -6/Lower Caves | Attracted the attention of an 0b10 base 6265 | -6/Lower Caves | Encountered a Warlord checkpoint 6306 | -6/Lower Caves | Discovered new exit (range 20) 6388 | -6/Lower Caves | Learned Armory security intel 6388 | -6/Lower Caves | Learned Factory terminal intel 6528 | -6/Lower Caves | Identified exit to Factory 6632 | -6/Lower Caves | Discovered new exit (range 15) 6753 | -6/Lower Caves | Identified exit to Zion 6805 | -6/Lower Caves | Entered Zion 6847 | -6/Zion | Discovered new exit (range 14) 6913 | -6/Zion | Visited the Megawrench Repair Shop 6913 | -6/Zion | Megawrench repaired 4 parts 6994 | -6/Zion | Discovered new exit (range 13) 7002 | -6/Zion | Learned location of Warlord (-5) 7029 | -6/Zion | Acquired unknown access codes intercepted by a Zionite 7041 | -6/Zion | Turned away by Imprinter 7222 | -6/Zion | Identified exit to Proximity Caves 7222 | -6/Zion | Entered Proximity Caves 7409 | -5/Proximity Caves | Entered Factory 7409 | -5/Factory | Accompanied by 1 ally 7409 | -5/Factory | Evolved 2 slots: Propulsion x2 7410 | -5/Factory | Identified exit to Factory 7410 | -5/Factory | Identified exit to Extension 7412 | -5/Factory | Loaded intel: 27 terminal locations 7588 | -5/Factory | Loaded intel: 8 recycling unit locations 7894 | -5/Factory | Spotted B-75 Beast 8078 | -5/Factory | Scrapoid reinforcements arrived 8122 | -5/Factory | Entered Extension 8137 | -5/Extension | Lost 4 allies 8165 | -5/Extension | Rescued a captive Derelict 8166 | -5/Extension | Rescued a captive Derelict 8263 | -5/Extension | Rescued a captive Derelict 8264 | -5/Extension | Rescued a captive Derelict 8265 | -5/Extension | Rescued a captive Derelict 8265 | -5/Extension | Rescued a captive Derelict 8303 | -5/Extension | Rescued a captive Derelict 8303 | -5/Extension | Rescued a captive Derelict 8314 | -5/Extension | Rescued a captive Derelict 8674 | -5/Extension | Spotted B-75 Beast 8686 | -5/Extension | Allies destroyed B-75 Beast 8700 | -5/Extension | Spotted B-75 Beast 8727 | -5/Extension | Allies destroyed B-75 Beast 8748 | -5/Extension | Rescued a captive Derelict 8754 | -5/Extension | Lost 5 allies 8780 | -5/Extension | Rescued a captive Derelict 8781 | -5/Extension | Rescued a captive Derelict 8872 | -5/Extension | Disrupted transfer network 8915 | -5/Extension | Rescued a captive Derelict 8917 | -5/Extension | Rescued a captive Derelict 8980 | -5/Extension | Lost 4 allies 8996 | -5/Extension | Rescued a captive Derelict 9010 | -5/Extension | Rescued a captive Derelict 9022 | -5/Extension | First assault squad dispatched 9036 | -5/Extension | Rescued A7 9039 | -5/Extension | Rescued a captive Derelict 9040 | -5/Extension | Rescued a captive Derelict 9090 | -5/Extension | Rescued a captive Derelict 9096 | -5/Extension | Discovered new exit (range 19) 9096 | -5/Extension | Lost 4 allies 9174 | -5/Extension | Discovered exit to Factory (range 10) 9182 | -5/Extension | Identified exit to Cetus 9273 | -5/Extension | Entered Cetus 9273 | -5/Cetus | Accompanied by 14 allies (A7) 9278 | -5/Cetus | Acquired a Cetus Manufacturing Module code from A7 9278 | -5/Cetus | Spotted Cetus Guard 9279 | -5/Cetus | Spotted Cetus Guard 9289 | -5/Cetus | Allies destroyed Cetus Guard 9289 | -5/Cetus | Spotted Cetus Guard 9301 | -5/Cetus | Allies destroyed Cetus Guard 9304 | -5/Cetus | Spotted Cetus Guard 9304 | -5/Cetus | Allies destroyed Cetus Guard 9320 | -5/Cetus | Allies destroyed Cetus Guard 9350 | -5/Cetus | Lost 3 allies 9351 | -5/Cetus | Started Cetus Manufacturing Module 9376 | -5/Cetus | Manufactured an Enhanced Grunt 9401 | -5/Cetus | Manufactured an Enhanced Grunt 9426 | -5/Cetus | Manufactured an Enhanced Grunt 9451 | -5/Cetus | Manufactured an Enhanced Grunt 9476 | -5/Cetus | Manufactured an Enhanced Grunt 9504 | -5/Cetus | Escorted A7 to Cetus Mainframe 9521 | -5/Cetus | Discovered new exit (range 15) 9558 | -5/Cetus | Spotted Cetus Guard 9559 | -5/Cetus | Spotted Cetus Guard 9563 | -5/Cetus | Destroyed Cetus Guard 9565 | -5/Cetus | Spotted Cetus Guard 9565 | -5/Cetus | Spotted Cetus Guard 9576 | -5/Cetus | Allies destroyed Cetus Guard 9580 | -5/Cetus | Allies destroyed Cetus Guard 9585 | -5/Cetus | Allies destroyed Cetus Guard 9586 | -5/Cetus | Discovered exit to Factory (range 20) 9590 | -5/Cetus | Extracted ID and sensor layout for unrecognized location from A7's data core 9593 | -5/Cetus | Met Revision 17 9697 | -5/Cetus | Build established: Commander-Scout 9722 | -5/Cetus | Identified exit to Archives 9782 | -5/Cetus | Entered Archives 9782 | -5/Archives | Accompanied by 14 allies 9787 | -5/Archives | Met Zhirov 9793 | -5/Archives | Reinforcements dispatched to Archives 9793 | -5/Archives | Read partially decrypted archive contents 9795 | -5/Archives | Discovered new exit (range 17) 9815 | -5/Archives | Discovered new exit (range 20) 9832 | -5/Archives | Discovered exit to Factory (range 16) 9838 | -5/Archives | Reinforcements dispatched to Archives 9840 | -5/Archives | Zhirov warped through subspace 9843 | -5/Archives | Identified exit to Hub_04(d) 9858 | -5/Archives | Zhirov detonated Archives 9858 | -5/Archives | Lost 5 allies 9874 | -5/Archives | Entered Hub_04(d) 9884 | -5/Hub_04(d) | Discovered exit to Factory (range 13) 9889 | -5/Hub_04(d) | Lost 3 parts (1n2u) 9889 | -5/Hub_04(d) | Lost 8 allies 10022 | -5/Hub_04(d) | Network Hub disabled 10024 | -5/Hub_04(d) | Entered Factory 10024 | -4/Factory | Evolved 2 slots: Power x1, Utility x1 10025 | -4/Factory | Identified exit to Research 10064 | -4/Factory | Discovered new exit (range 20) 10142 | -4/Factory | Identified exit to Upper Caves 10215 | -4/Factory | Spotted B-86 Titan 10297 | -4/Factory | Fabricated Enh. Quantum Rifle? 10302 | -4/Factory | Garrison activated, responded to threat 10324 | -4/Factory | Discovered exit to Research (range 18) 10396 | -4/Factory | Discovered exit to Research (range 15) 10434 | -4/Factory | Loaded intel: 8 recycling unit locations 10445 | -4/Factory | Identified exit to Armory 10563 | -4/Factory | Allied Derelicts emerged from ambush trap array 10620 | -4/Factory | Fabricated Hyp. Coil Gun? 10736 | -4/Factory | Lost 3 allies 10971 | -4/Factory | Central database locked down 11015 | -4/Factory | Build established: Scout 11457 | -4/Factory | Build established: Scavenger-Skirmisher 11885 | -4/Factory | Entered Upper Caves 11886 | -4/Upper Caves | Identified exit to Upper Caves 11902 | -4/Upper Caves | Entered an active Warlord outpost 11918 | -4/Upper Caves | Learned Extension trap positions 11918 | -4/Upper Caves | Learned Extension emergency access door positions 12210 | -4/Upper Caves | Learned Research terminal intel 12279 | -4/Upper Caves | Entered another Upper Caves area 12280 | -4/Upper Caves | Discovered new exit (range 101) 12382 | -4/Upper Caves | Learned Research emergency access door positions 12442 | -4/Upper Caves | Entered an active Warlord outpost 12445 | -4/Upper Caves | A Commander dispatched an escort 12457 | -4/Upper Caves | Learned Armory stockpile data 12520 | -4/Upper Caves | Attracted the attention of an 0b10 base 12736 | -4/Upper Caves | Learned Factory trap positions 12736 | -4/Upper Caves | Learned Armory trap positions 12736 | -4/Upper Caves | Learned Extension terminal intel 12736 | -4/Upper Caves | Learned Armory terminal intel 12776 | -4/Upper Caves | Identified exit to Zhirov 12838 | -4/Upper Caves | Learned Research trap positions 13063 | -4/Upper Caves | Found Alien Artifact 13063 | -4/Upper Caves | Identified Core Expander 13063 | -4/Upper Caves | Installed Core Expander, added new Power slot 13524 | -4/Upper Caves | Entered Zhirov 13524 | -4/Zhirov | Discovered new exit (range 3) 13566 | -4/Zhirov | Learned location of Quarantine (-3) 13566 | -4/Zhirov | Learned location of Testing (-2) 13566 | -4/Zhirov | Learned location of Command (-1) 13599 | -4/Zhirov | Found Alien Artifact 13599 | -4/Zhirov | Identified Integrated Dissipator 13599 | -4/Zhirov | Installed Integrated Dissipator, increased core heat dissipation (+20) 13615 | -4/Zhirov | Found Alien Artifact 13730 | -4/Zhirov | Identified exit to Proximity Caves 13744 | -4/Zhirov | Entered Proximity Caves 13790 | -3/Proximity Caves | Lost 5 parts (1p2n2u) 13828 | -3/Proximity Caves | Spotter reported a threat 13865 | -3/Proximity Caves | Spotter reported a threat 14047 | -3/Proximity Caves | Build established: Scavenger-Tank 14395 | -3/Proximity Caves | Entered Research 14395 | -3/Research | Evolved 2 slots: Utility x2 14396 | -3/Research | Identified exit to Quarantine 14398 | -3/Research | Loaded intel: 79 trap records 14400 | -3/Research | Loaded intel: 23 terminal locations 14595 | -3/Research | Revision forces began assault on 0b10 14650 | -3/Research | Loaded intel: 5 recycling unit locations 14655 | -3/Research | Met up with Revision 17++ 14741 | -3/Research | Allied Derelicts emerged from ambush trap array 14882 | -3/Research | Build established: Scavenger-Skirmisher 14972 | -3/Research | Lost 3 allies 15057 | -3/Research | Repaired Prc. Grenade Launcher 15095 | -3/Research | Research terminal network offline 15277 | -3/Research | Build established: Scavenger-Tank 15389 | -3/Research | Fabricated Centrium Wheel? 15716 | -3/Research | Found Exp. Core Analyzer 15773 | -3/Research | Spotted Striker 16281 | -3/Research | Lost 3 allies 16290 | -3/Research | Spotted Striker 16306 | -3/Research | Destroyed Striker 16520 | -3/Research | Central database locked down 16562 | -3/Research | Spotted Striker 16592 | -3/Research | Destroyed Striker 16622 | -3/Research | Lost 4 parts (2p1n1u) 16706 | -3/Research | Lost 3 parts (1p1n1w) 16750 | -3/Research | Spotted Striker 16765 | -3/Research | Spotted Executioner 16768 | -3/Research | Destroyed Striker 16778 | -3/Research | Destroyed Executioner 16807 | -3/Research | Lost 8 parts (1p2n2u3w) 16808 | -3/Research | Destroyed 7 combat bots 17035 | -3/Research | Spotted Striker 17038 | -3/Research | Spotted Striker 17048 | -3/Research | Destroyed Striker 17058 | -3/Research | Destroyed Striker 17109 | -3/Research | Spotted Striker 17112 | -3/Research | Spotted Striker 17118 | -3/Research | Destroyed Striker 17139 | -3/Research | Destroyed Striker 17221 | -3/Research | Entered Quarantine 17233 | -3/Quarantine | Central database locked down 17274 | -3/Quarantine | Found Alien Artifact 17274 | -3/Quarantine | Identified Subatomic Replicator 17279 | -3/Quarantine | Used Subatomic Replicator to create Alien Artifact 17540 | -3/Quarantine | Found Alien Artifact 17546 | -3/Quarantine | Found Alien Artifact 17550 | -3/Quarantine | Found Alien Artifact 17769 | -3/Quarantine | Lost 6 parts (3p1n1u1w) 17950 | -3/Quarantine | Found Alien Artifact 17950 | -3/Quarantine | Identified Phase Redirector 18063 | -3/Quarantine | Met incapacitated Sigix Warrior 18063 | -3/Quarantine | Lockdown squad dispatched 18064 | -3/Quarantine | Acquired the access code to the Sigix quarantine chamber 18067 | -3/Quarantine | Unlocked Sigix quarantine chamber 18072 | -3/Quarantine | Found Sigix Containment Pod 18077 | -3/Quarantine | Identified Transdimensional Reconstructor (x3) 18077 | -3/Quarantine | Warped through subspace 18176 | -3/Quarantine | Spotted Lightning 18187 | -3/Quarantine | Spotted Lightning 18192 | -3/Quarantine | Spotted Lightning 18194 | -3/Quarantine | Identified Supercharged TR 18194 | -3/Quarantine | Warped through subspace 18195 | -3/Quarantine | Warped through subspace 18223 | -3/Quarantine | Lost 5 parts (1p1n2u1w) 18231 | -3/Quarantine | Core integrity fell below 50% 18242 | -3/Quarantine | System corruption reached 10% 18519 | -3/Quarantine | Destroyed Lightning 18544 | -3/Quarantine | Destroyed Lightning 18551 | -3/Quarantine | Destroyed Lightning 18557 | -3/Quarantine | Found Exp. Phase Shifter 18572 | -3/Quarantine | Found Exp. Targeting Computer 18578 | -3/Quarantine | Lost 4 parts (1p1n1u1w) 18603 | -3/Quarantine | Build established: Scavenger-Gunner 18685 | -3/Quarantine | Scanned by Researcher 19039 | -3/Quarantine | Lost 3 parts (1u2w) 19164 | -3/Quarantine | Lost 3 parts (2n1w) 19174 | -3/Quarantine | Found Alien Artifact 19174 | -3/Quarantine | Identified Phase Armor 19190 | -3/Quarantine | Discovered new exit (range 8) 19197 | -3/Quarantine | Identified exit to Research 19198 | -3/Quarantine | Entered Research 19198 | -2/Research | Evolved 2 slots: Utility x1, Weapon x1 19200 | -2/Research | Loaded intel: 21 terminal locations 19633 | -2/Research | Loaded intel: 5 recycling unit locations 20084 | -2/Research | System corruption reached 10% 20171 | -2/Research | Lost 6 parts (2p2n1u1w) 20464 | -2/Research | Discovered new exit (range 3) 20466 | -2/Research | Identified exit to Access 20810 | -2/Research | Lost 4 parts (2n2w) 20830 | -2/Research | Spotted B-90 Cyclops 20850 | -2/Research | Destroyed B-90 Cyclops 20905 | -2/Research | Lost 4 parts (2p2n) 21102 | -2/Research | Identified exit to Testing 21198 | -2/Research | First assault squad dispatched 21254 | -2/Research | Entered Testing 21373 | -2/Testing | Found Exp. Hardlight Generator 21423 | -2/Testing | Found Perforator 21454 | -2/Testing | Found Null Cannon 21508 | -2/Testing | Found Exp. Focal Shield 21522 | -2/Testing | Central database locked down 21924 | -2/Testing | Unchained authorized (CL-0N3) 21989 | -2/Testing | Found Hvy. Regenerative Plating 21992 | -2/Testing | Found Hvy. Regenerative Plating 21997 | -2/Testing | Found SHELL Armor 22344 | -2/Testing | U-05 Engineer reconstituted as V2 22344 | -2/Testing | Spotted V2 22362 | -2/Testing | Destroyed V2 22362 | -2/Testing | V2 reconstituted as CL-0N3 22423 | -2/Testing | Destroyed 7 combat bots 22464 | -2/Testing | Found Hyp. EM Gauss Rifle 22515 | -2/Testing | Spotted PH-QGMQ0X2CXI 22521 | -2/Testing | Destroyed PH-QGMQ0X2CXI 22551 | -2/Testing | Found Zero-point Reactor 22554 | -2/Testing | Found Zero-point Reactor 22593 | -2/Testing | Found 2N-1CE's Frost Array 22689 | -2/Testing | Spotted Fortress 22693 | -2/Testing | U-05 Engineer reconstituted as Alpha 7 22693 | -2/Testing | Spotted Alpha 7 22704 | -2/Testing | Alpha 7 reconstituted as CL-0N3 22787 | -2/Testing | Destroyed Fortress 22837 | -2/Testing | Found Exp. Force Field 22913 | -2/Testing | Discovered new exit (range 6) 22913 | -2/Testing | Discovered new exit (range 6) 22918 | -2/Testing | Identified exit to Protoforge 22922 | -2/Testing | Identified exit to Section 7 22931 | -2/Testing | Entered Protoforge 23010 | -2/Protoforge | Superfortress began startup sequence 23300 | -2/Protoforge | Discovered exit to Access (range 12) 23685 | -2/Protoforge | Destroyed Hotshot 23745 | -2/Protoforge | Spotted Hotshot 23747 | -2/Protoforge | Destroyed Hotshot 23747 | -2/Protoforge | Destroyed Hotshot 23769 | -2/Protoforge | Spotted Hotshot 23771 | -2/Protoforge | Spotted Hotshot 23775 | -2/Protoforge | Spotted Hotshot 23780 | -2/Protoforge | Destroyed Hotshot 23788 | -2/Protoforge | Destroyed Hotshot 23822 | -2/Protoforge | Destroyed 7 combat bots 23857 | -2/Protoforge | Destroyed Hotshot 23869 | -2/Protoforge | Lost 5 parts (2p2n1w) 24007 | -2/Protoforge | Central database locked down 24120 | -2/Protoforge | Spotted EXE-6 24120 | -2/Protoforge | Spotted EXE-6 24467 | -2/Protoforge | Spotted AP7-3 24471 | -2/Protoforge | Spotted AP7-3 24493 | -2/Protoforge | Spotted Overlord 24495 | -2/Protoforge | Destroyed AP7-3 24509 | -2/Protoforge | Core integrity fell below 50% 24514 | -2/Protoforge | Destroyed Overlord 24562 | -2/Protoforge | Destroyed AP7-3 24592 | -2/Protoforge | Lost 13 parts (3p5n2u3w) 24643 | -2/Protoforge | Core integrity fell below 20% 24647 | -2/Protoforge | Destroyed by Q765-p with Ragnarok Missile Launcher Last Messages --------------- Injector. 24633_ N-04 Retriever collects Energy Well. 24633_ Q765-p knocked back. 24633_ N-04 Retriever destroyed. 24636_ K-01 Serf collects debris. 24636_ Slug penetrates Q765-p. 24637_ Huge Storage Unit destroyed. 24637_ KE Penetrator+ destroyed. 24639_ K-01 Serf collects debris. 24639_ Destroyed Imp. Shock Absorption System. 24639_ Q765-p knocked back. 24639_ Destroyed Lgt. Particle Reactor. 24642_ Adv. Recoil Stabilizer destroyed. 24642_ Q765-p knocked back. 24643_ K-01 Serf collects debris. 24643_ Graviton Cannon destroyed. 24645_ Imp. Armor Integrity Analyzer destroyed. 24645_ Q765-p knocked back. 24646_ Wheel+ destroyed. 24646_ K-01 Serf collects debris. Map ----- +----------------------------------------------------+ | ?????????????????????????????????????????????????? | | ?????????????????????????????????????????????????? | | ?????????????????????????????????????????????????? | | ?????????????????????????????????????????????????? | | ?????????????????????????????????????????????????? | | ?????????????????????????????????????????????????? | | ?????????????????????????????????????????????????? | | ?????????????????????????????????????????????????? | | ?????????????????????????????????????????????????? | | ?????????????????????????????????????????????????? | | ?????????????????????????????????????????????????? | | ?????????????????????????????????????????????????? | | ?????????????????????????????????????????????????? | | ?????????????????????????????????????????????????? | | ?????????????????????????????????????????????????? | | ?????????????????????????????????????????????????? | | ?????????????????????????????????????????????????? | | ?????????????????????????????????????????????????? | | ?????????????????????????????????????????????????? | | ?????????????????????????????????????????????????? | | ?????????????????????????????????????????????????? | | ?????????????????????????????????????????????????? | | ?????????????????????????????????????????????????? | | ?########################????????????????????????? | | ?#################################???????????????? | | ?## @ !%* % Q% ????????? | | ?## "" "" " ! % m ????????? | | ?## """" " "" ""% ????????? | | ?## "" " "" """ "" "" ?????????? | | ?## """ """" k""" "" ?????????? | | ?## "" " "" ??????????? | | ?## " "" """ " ??????????? | | ?## "" "" """" " " ??????????? | | ?## % " "" " "???????????? | | ?## " " " """ n " "???????????? | | ?## " " "" """""" ""? ????????????? | | ?##%% "" m "??? ????????????? | | ?## % "" "" """ ????????????????? | | ?##! """"" "" " """" ????????????????? | | ?##% " " " ???????????????????? | | ?## " " "" """" ?????????????????????? | | ?## """"" "" "" ???????????????????????? | | ### " "" " ???????????????????????? | | ###% """" "" ???????????????????????? | | + """" "" "???????????????????????? | | + " ""???????????????????????? | | + "" " """???????????????????????? | | ### " """"???????????????????????? | | ### " "" """""???????????????????????? | | ?## """"" " """"""???????????????????????? | +----------------------------------------------------+ Best States ------------- Heat Dissipation 169 Energy Generation 73 Energy Capacity 580 Matter Stores 300 Matter Capacity 300 Sight Range 21 Robot Scan Range 18 Terrain Scan Range 24 Terrain Scan Density 1210 Additional Mass Support 16 Base Temperature (-) 200 EM Shielding 4 Armor Coverage 1800 Resistance: KI 30 Propulsion Shielding 90 Phase Shifting 20 Evasion (%) 70 Targeting Accuracy 12 Melee Accuracy 8 Target Analysis 8 Core Analysis 8 Armor Integrity Analysis 40 Recoil Reduction 8 Kinecelleration 30 Offensive Hacking 34 Defensive Hacking 11 Item Schematics ----------------- Field Propulsion Drive | -6/Zion | Archive Adv. Sensor Array | -6/Zion | Archive Dispersion Rifle | -6/Zion | Archive Imp. Force Field | -6/Zion | Archive Coil Gun | -6/Zion | Archive Neutrino Core | -6/Zion | Archive Adv. Terrain Scanner | -6/Zion | Archive Disruptor Cannon | -6/Zion | Archive Stasis Canceller | -6/Zion | Archive Imp. Recalibrator | -6/Zion | Archive Energy Well | -6/Zion | Archive Imp. Plasma Cutter | -6/Zion | Archive Thermic Laser | -6/Zion | Archive Angular Momentum Engine | -6/Zion | Archive Point Defense System | -6/Zion | Archive Hyp. Coil Gun | -5/Factory | Hacked Q-thruster | -4/Factory | Hacked Exp. Hacking Suite | -4/Factory | Hacked Centrium Wheel | -4/Factory | Hacked Hcp. Storage Unit | -4/Factory | Hacked Cmb. Linear Gravjet | -4/Factory | Hacked Graphene Brace | -4/Factory | Hacked Hyp. Gauss Cannon | -4/Factory | Scanalyzed Assault Drone Bay | -4/Zhirov | Free Exp. Heat Sink | -4/Zhirov | Free Exp. Optical Array | -4/Zhirov | Free Imp. Arc Thrower | -4/Zhirov | Free Kinetic Spear | -3/Quarantine | Archive Particle Accelerator | -3/Quarantine | Archive Cld. Proton Cannon | -3/Quarantine | Archive Com. Mass Driver | -2/Testing | Archive Exp. System Shield | -2/Testing | Archive Quantum Shading Machine | -2/Testing | Archive Enh. Multireflex Exoskeleton | -2/Testing | Archive Centrium Medium Armor Plating | -2/Testing | Archive Robot Schematics ------------------ R-10 Processor | -6/Zion | Archive E-15 Imp | -6/Zion | Archive Y-54 Guardian | -6/Zion | Archive A-15 Conveyor | -3/Quarantine | Archive Fabricated ------------ Enh. Quantum Rifle | x2 | -4/Factory | Preloaded Hyp. Coil Gun | x2 | -4/Factory Centrium Wheel | x2 | -3/Research Repaired ---------- Sub. Shrapnel Launcher | 18% | -6/Factory Adv. Sensor Array | 37% | -6/Factory Prc. Grenade Launcher | 2% | -3/Research Studied --------- Great Maul | -6/Factory | Hacked Lgt. Fission Core | -5/Factory | Hacked Imp. Gravmag System | -4/Factory | Hacked Wheel | -3/Research | Hacked Com. Wheel | -3/Research | Hacked Arm. Wheel | -3/Research | Hacked Centrium Wheel | -3/Research | Hacked Plasma Rifle | -3/Quarantine | Hacked Arm. Huge Wheel | -2/Research | Hacked Enh. Nova Cannon | -2/Testing | Hacked Biometal Leg | -2/Protoforge | Hacked Shield Leg | -2/Protoforge | Hacked KE Penetrator | -2/Protoforge | Hacked Alien Tech Used ----------------- Core Expander Integrated Dissipator Subatomic Replicator Phase Redirector Transdimensional Reconstructor Supercharged TR Phase Armor Achievements -------------- Disruptive Presence Longdome?! Recruitment Drive Tank Life Turtlemind Challenges ------------ None Game ------ Seed ShadingZeronetFlail Manual? 0 Play Time 06:40:37 Cumulative 173.3 hours Start 2025.12.08 @ 16:41:47 End 2025.12.09 @ 14:57:22 Sessions 5 Manual Loads 0 Difficulty Rogue Special Mode None Game No. 96 Rogue 96 Adventurer 0 Explorer 0 Win Type - Total 1 Types 1/0/0/0/0/0/0/0/0/0 Lore% 73 Gallery% 65 Achievement% 54 Wizard Run 0 Options --------- Layout 1 ASCII 0 Keyboard 0 Movement Mouse Keybinds 0 Fullscreen 2 Font 32/SmallcapsGlow Map View 50x35 Zoom Use 0% Tactical HUD 1 Map Filters NONE Filters NONE Steam 1 RUN: 1574ea3f-db58-49c0-b5a0-ab5903f7b458